[Event "German Rapid Championship 2022"]
[Site "Goettingen"]
[Date "2022.09.24"]
[Round "1"]
[White "Kersten, Uwe"]
[Black "Poetsch, Hagen"]
[Result "0-1"]
[ECO "B51"]
[WhiteElo "2261"]
[BlackElo "2491"]
[Annotator "TA"]
[PlyCount "29"]
[EventDate "2022.09.24"]
[EventType "swiss"]
[EventCountry "GER"]
[SourceTitle "playchess.com"]
[Source "ChessBase"]
[SourceQuality "1"]
[TimeControl "900+10"]

{[%evp 11,29,0,15,0,0,12,30,12,49,41,58,64,125,81,74,0,0,0,0,-23]} 1. e4 {[%emt 0:00:03]} c5 {[%emt 0:00:02]} 2. Nf3 {[%emt 0:00:06]} d6 {[%emt 0:00:02]} 3. Bb5+ {[%emt 0:00:05]} Nd7 {[%emt 0:00:01]} 4. d4 {[%emt 0:00:14]} cxd4 {[%emt 0:00:03]} 5. Qxd4 {[%emt 0:00:05]} a6 {[%emt 0:00:01]} 6. Bxd7+ {[%emt 0:00:06]} Bxd7 {[%emt 0:00:02]} 7. Bg5 {[%emt 0:00:10] B51: Sicilian: Moscow Variation (3 Bb5+) without 3...Bd7.} Rc8 {[%emt 0:00:31]} 8. Nc3 {[%emt 0:00:12]} f6 {[%emt 0:00:29]} 9. Be3 {[%emt 0:00:37] White has an edge.} e5 {[%emt 0:00:03] [#]} 10. Qd3 $146 {[%emt 0:01:16]} ({Predecessor:} 10. Qa7 Rxc3 11. bxc3 Bc6 12. Nd2 f5 13. exf5 Qc8 14. O-O Nf6 15. f4 Qxf5 16. fxe5 {1-0 (25) Lawton,G (2380)-Bilek,I (2405) Manchester 1983}) 10... Qa5 {[%emt 0:02:58]} 11. O-O {[%emt 0:00:16]} Bb5 {[%emt 0:01:00]} (11... Be6 $14) 12. Nxb5 {[%emt 0:00:44]} Qxb5 {[%emt 0:00:02]} 13. Qd2 {[%emt 0:02:07]} (13. Qxb5+ $16 axb5 14. c3) 13... Qc4 $11 {[%emt 0:00:53]} 14. Qd3 {[%emt 0:03:13]} Ne7 {[%emt 0:01:38]} 15. Rfd1 {[%emt 0:01:54][%mdl 32768] Weighted Error Value: White=0.20 (precise) /Black=0.18 (very precise) . Loss on time!?} 0-1

[Event "German Rapid Championship 2022"]
[Site "Goettingen"]
[Date "2022.09.24"]
[Round "1"]
[White "Bornholdt, Joa Max"]
[Black "Muckle, Julius"]
[Result "0-1"]
[ECO "D70"]
[WhiteElo "2196"]
[BlackElo "2401"]
[Annotator "TA"]
[PlyCount "40"]
[EventDate "2022.09.24"]
[EventType "swiss"]
[EventCountry "GER"]
[SourceTitle "playchess.com"]
[Source "ChessBase"]
[SourceQuality "1"]
[TimeControl "900+10"]

{[%evp 9,40,0,0,0,14,-8,-7,-37,-32,-18,-3,-20,-6,-25,-8,-47,-10,0,-6,-23,0,0,0,0,0,-24,0,-33,-24,-45,-7,-22,-27]} 1. d4 {[%emt 0:00:03]} d5 {[%emt 0:00:00]} 2. c4 {[%emt 0:00:01]} c6 {[%emt 0:00:01]} 3. Nf3 {[%emt 0:00:03]} Nf6 {[%emt 0:00:00]} 4. Nbd2 {[%emt 0:00:07]} Bf5 {[%emt 0:00:03]} 5. Nh4 {[%emt 0:00:05]} Be4 {[%emt 0:00:04]} 6. f3 {[%emt 0:00:18] D11: Slav Defence: 3 Nf3 sidelines and 3...Nf6 4 e3 Bg4.} Bg6 {[%emt 0:00:04]} 7. e3 {[%emt 0:00:03]} e6 {[%emt 0:00:05]} 8. Qb3 {[%emt 0:00:15]} Qc7 {[%emt 0:00:01]} 9. Be2 {[%emt 0:01:25]} Nbd7 {[%emt 0:00:05] [#]} 10. Nxg6 $146 {[%emt 0:01:29]} ({Predecessor:} 10. g3 c5 11. cxd5 exd5 12. Nxg6 hxg6 13. O-O Bd6 14. Kg2 Kf8 15. Qd1 Re8 16. Nb1 cxd4 17. exd4 {0-1 (29) Pantzar,M (2417)-Balakrishnan,P (2498) Chess.com INT 2020}) 10... hxg6 {[%emt 0:00:01]} 11. f4 $1 {[%emt 0:00:02]} Be7 {[%emt 0:00:51]} 12. Nf3 {[%emt 0:02:13]} O-O {[%emt 0:00:22]} (12... Ne4 {is more complex.} 13. Bd3 O-O-O 14. Bd2 Kb8) 13. O-O {[%emt 0:00:38]} c5 {[%emt 0:00:37]} 14. cxd5 {[%emt 0:00:11]} exd5 {[%emt 0:00:05]} 15. Bd2 {[%emt 0:00:44]} c4 {[%emt 0:01:24]} 16. Qc2 {[%emt 0:00:19]} Ne4 {[%emt 0:00:01]} 17. Rac1 {[%emt 0:00:25]} Rac8 {[%emt 0:01:20]} 18. a4 {[%emt 0:01:12]} (18. Ne5 $5 {[%cal Re2g4]}) 18... Qb6 {[%emt 0:00:42]} 19. a5 {[%emt 0:00:16]} Qb5 {[%emt 0:00:09]} 20. Be1 {[%emt 0:00:23]} b6 {[%emt 0:06:23][%mdl 32768] Weighted Error Value: White=0.14 (very precise) /Black=0.12 (very precise) . Loss on time!?} 0-1

[Event "German Rapid Championship 2022"]
[Site "Goettingen"]
[Date "2022.09.24"]
[Round "1.1"]
[White "Cofmann, Veaceslav"]
[Black "Svane, Rasmus"]
[Result "0-1"]
[ECO "D37"]
[WhiteElo "2250"]
[BlackElo "2615"]
[Annotator "TA"]
[PlyCount "112"]
[EventDate "2022.09.24"]
[EventType "swiss"]
[EventCountry "GER"]
[SourceTitle "playchess.com"]
[Source "ChessBase"]
[SourceQuality "1"]
[TimeControl "900+10"]

{[%evp 9,112,27,29,20,33,18,30,24,37,30,27,0,0,0,14,0,22,-20,-4,-23,-12,-39,-41,-40,-41,-38,-29,-31,-31,-31,-31,-31,-31,-53,-35,-75,-43,-84,-77,-84,-49,-60,-49,-76,-74,-58,-33,-97,-108,-100,-27,0,0,0,0,0,0,0,0,0,0,-5,0,0,0,0,0,0,0,0,0,-1,0,-181,-181,-205,-68,-209,-194,-193,-147,-190,-175,-297,-258,-5269,-5489,-5106,-5105,-29967,-686,-29966,-29970,-29987,-29988,-29987,-29988,-29988,-29989,-29989,-29988,-29988,-29989,-29994,-29991]} 1. d4 {[%emt 0:00:04]} Nf6 {[%emt 0:00:02]} 2. c4 {[%emt 0:00:02]} e6 {[%emt 0:00:02]} 3. Nf3 {[%emt 0:00:02]} d5 {[%emt 0:00:02]} 4. Nc3 {[%emt 0:00:03]} a6 {[%emt 0:00:06]} 5. cxd5 {[%emt 0:00:05]} exd5 {[%emt 0:00:02]} 6. Bg5 {[%emt 0:00:02][%cal Bc1g5,Bg5h4,Bh4g3][%mdl 32] D37: Queen's Gambit Declined: 5 Bf4.} Be6 {[%emt 0:00:03]} 7. e3 {[%emt 0:00:05]} Nbd7 {[%emt 0:00:02]} 8. Bd3 {[%emt 0:00:03] White has an edge.} Bd6 {[%emt 0:00:02]} 9. O-O {[%emt 0:00:07]} c6 $1 {[%emt 0:00:02] The main line 9...c6 scores better than 9...0-0.} 10. Qc2 {[%emt 0:00:11]} Qc7 {[%emt 0:00:04]} 11. Bh4 {[%emt 0:00:16]} Bg4 {[%emt 0:00:43]} 12. Bg3 {[%emt 0:00:11]} O-O {[%emt 0:00:05] [#]} 13. Bf5 $146 {[%emt 0:00:24]} ({Predecessor:} 13. Bxd6 Qxd6 14. Nd2 Rfe8 15. b4 Re7 16. Rab1 Rc8 17. Na4 Nf8 18. Nc5 Bh5 19. a4 {0-1 (48) Shipov,S (2541)-Svane,R (2613) Chess.com INT 2020}) 13... Bxf5 {[%emt 0:01:37]} 14. Qxf5 {[%emt 0:00:02]} Rfe8 {[%emt 0:00:15]} 15. Qc2 {[%emt 0:00:03]} Bxg3 {[%emt 0:00:27]} 16. hxg3 {[%emt 0:00:03]} Nb6 {[%emt 0:00:11]} 17. Ne5 {[%emt 0:00:58]} Nfd7 {[%emt 0:00:15]} 18. Nxd7 {[%emt 0:00:10]} Qxd7 {[%emt 0:00:02]} 19. Ne2 {[%emt 0:00:14]} Nc4 {[%emt 0:00:47]} 20. Nf4 {[%emt 0:00:20]} Re7 {[%emt 0:00:08]} 21. b4 {[%emt 0:01:56]} Qd6 {[%emt 0:02:19]} 22. Qc3 {[%emt 0:00:37]} a5 {[%emt 0:01:10]} (22... g5 $5 {[%cal Rg5f4]} 23. Nd3 h5 $15) 23. a3 {[%emt 0:00:36]} b5 {[%emt 0:00:05]} 24. Nd3 {[%emt 0:00:58]} Rea7 {[%emt 0:00:02] Black is more active.} 25. Nc5 {[%emt 0:00:36]} Qg6 {[%emt 0:00:31]} 26. a4 {[%emt 0:00:39]} axb4 {[%emt 0:01:05]} 27. Qxb4 {[%emt 0:00:03]} h5 {[%emt 0:00:15]} (27... Qd6 $5 {[%cal Rb5a4]} 28. Rfb1 Qd8 $11) 28. Ra2 {[%emt 0:00:22]} ({White should play} 28. Rfe1 $1 $15) 28... Qg4 $17 {[%emt 0:01:22]} 29. Rfa1 {[%emt 0:00:18]} h4 {[%emt 0:02:34]} (29... Ra5 $17) 30. gxh4 $11 {[%emt 0:00:09]} Ne5 {[%emt 0:00:47]} 31. Qb2 {[%emt 0:01:46]} Nf3+ {[%emt 0:00:10]} 32. Kf1 {[%emt 0:00:02]} Nh2+ {[%emt 0:00:22]} 33. Kg1 {[%emt 0:00:13]} Nf3+ {[%emt 0:00:04]} 34. Kf1 {[%emt 0:00:01]} Nxh4 {[%emt 0:00:17]} 35. f3 $132 {[%emt 0:00:35][%mdl 2048] White has counterplay} Qg5 {[%emt 0:00:04]} (35... Nxf3 36. gxf3 Qxf3+ 37. Qf2 Qh3+ 38. Ke1 $16) 36. axb5 {[%emt 0:01:30]} Rxa2 {[%emt 0:02:04]} 37. Rxa2 {[%emt 0:00:02]} Rxa2 {[%emt 0:00:02]} 38. Qxa2 {[%emt 0:00:01]} cxb5 {[%emt 0:00:10][%mdl 4096] Endgame KQN-KQN} 39. f4 {[%emt 0:00:38]} Qf5 {[%emt 0:00:29]} 40. Kg1 {[%emt 0:01:05]} b4 {[%emt 0:00:22]} 41. Qe2 $2 {[%emt 0:03:40] [#]} (41. Kf2 $11 {and White is okay.}) 41... Qb1+ $1 $19 {[%emt 0:00:47]} 42. Kh2 {[%emt 0:00:40]} Qg6 {[%emt 0:00:44] Prevents Qg4.} (42... b3 $19 {Strongly threatening ...Nf5.} 43. e4 b2) 43. e4 {[%emt 0:01:23] [#] Against Nf5. Now White is beyond hope.} (43. g4 $15) 43... dxe4 $1 {[%emt 0:00:12]} (43... Qh6 44. Kg3 $15 (44. Qg4 dxe4 45. Kg1 Qf6 $19)) 44. Nxe4 {[%emt 0:00:10]} Qe6 {[%emt 0:00:50]} (44... Qh6 $19 {Hoping for ...Nf5+.} 45. Ng5 Nf3+ 46. Kg3 Nxg5 47. fxg5 Qxg5+ 48. Kf3 b3) 45. Qd3 {[%emt 0:00:52]} Qd5 {[%emt 0:00:07]} ({Worse is} 45... Qg4 46. Qg3 Qxg3+ 47. Kxg3 Nf5+ 48. Kf3 $17) 46. Qe2 {[%emt 0:00:14]} (46. Qc2 $142) 46... Qxd4 {[%emt 0:00:14] aiming for ...Nf5.} 47. Kh1 $2 {[%emt 0:00:05]} (47. Qd2 Nf5 48. Qxd4 Nxd4 49. Nd2) 47... Nf5 {[%emt 0:00:06][%cal Od4e4] ( -> ...Qxe4!)} 48. Kh2 {[%emt 0:00:04]} b3 {[%emt 0:00:06] White must now prevent ...Ne3.} 49. g3 {[%emt 0:00:09]} b2 {[%emt 0:00:43]} (49... Ne3 $142 50. Qf3 b2 51. Ng5 Qd2+ 52. Kh3 Qd7+ 53. Kh2 Ng4+ 54. Kg2 Qd2+ 55. Kh3 g6 56. Qa8+ Kg7 57. Ne6+ fxe6 58. Qa7+ Kh6 59. Qc5 Nf2+ 60. Kh4 Qd8+ 61. Qg5+ Qxg5+ 62. fxg5+ Kg7 63. g4 b1=Q 64. Kg3 Ne4+ 65. Kf3 Qd3+ 66. Kf4 Nd2 67. Ke5 Nc4+ 68. Kxe6 Qd6#) 50. Ng5 {[%emt 0:00:02][%cal Re2e8]} Ne3 {[%emt 0:00:07] Black mates.} 51. Qb5 {[%emt 0:00:05]} Qd2+ {[%emt 0:00:04]} 52. Kh3 {[%emt 0:00:05]} Qg2+ {[%emt 0:00:02]} 53. Kh4 {[%emt 0:00:01]} Qh1+ {[%emt 0:00:08]} 54. Nh3 {[%emt 0:00:37]} Ng2+ {[%emt 0:00:06]} 55. Kg4 {[%emt 0:00:08]} Qd1+ {[%emt 0:00:01]} 56. Kg5 {[%emt 0:00:08]} f6+ {[%emt 0:00:03] Weighted Error Value: White=0.65/Black=0.22 (precise)} 0-1

[Event "German Rapid Championship 2022"]
[Site "Goettingen"]
[Date "2022.09.24"]
[Round "1.2"]
[White "Fridman, Daniel"]
[Black "Schenderowitsch, Michael"]
[Result "*"]
[ECO "E39"]
[WhiteElo "2607"]
[BlackElo "2292"]
[Annotator "TA"]
[PlyCount "122"]
[EventDate "2022.09.24"]
[EventType "swiss"]
[EventCountry "GER"]
[SourceTitle "playchess.com"]
[Source "ChessBase"]
[SourceQuality "1"]
[TimeControl "900+10"]

{[%evp 16,122,3,9,7,0,24,16,24,23,15,16,67,61,68,57,64,74,71,54,52,47,47,54,55,50,56,43,49,48,56,45,45,45,45,59,57,65,76,51,62,57,74,66,69,69,72,54,62,48,59,57,73,66,119,118,152,137,125,133,129,126,123,102,85,39,34,38,185,187,170,180,179,168,209,214,321,316,250,196,189,207,189,65,185,33,32,0,195,181,279,137,335,309,447,169,207,15,312,235,312,0,392,122,161,141,398,320,170]} 1. d4 {[%emt 0:00:03]} e6 {[%emt 0:00:07]} 2. c4 {[%emt 0:00:01]} Nf6 {[%emt 0:00:02]} 3. Nc3 {[%emt 0:00:02]} Bb4 {[%emt 0:00:01]} 4. Qc2 {[%emt 0:00:01]} c5 {[%emt 0:00:02]} 5. dxc5 {[%emt 0:00:02]} O-O {[%emt 0:00:12]} 6. Nf3 {[%emt 0:00:02]} Na6 {[%emt 0:00:07][%cal Bb8a6,Ba6c5,Bc5e4][%mdl 32]} 7. g3 {[%emt 0:00:03]} Nxc5 {[%emt 0:00:05]} 8. Bg2 {[%emt 0:00:02]} Nce4 {[%emt 0:00:41]} 9. O-O {[%emt 0:00:03]} Bxc3 {[%emt 0:02:18] E39: Nimzo-Indian: Classical: 4...c5 5 dxc5 0-0.} 10. bxc3 {[%emt 0:00:02]} Qa5 {[%emt 0:00:38]} 11. Nd4 {[%emt 0:02:38]} d5 {[%emt 0:01:54] The position is equal.} 12. cxd5 {[%emt 0:02:34]} exd5 {[%emt 0:00:05]} 13. c4 {[%emt 0:00:12]} Qc5 {[%emt 0:02:25]} (13... Bd7 $11) 14. Bb2 $14 {[%emt 0:00:03]} Qxc4 {[%emt 0:00:34]} 15. Qxc4 {[%emt 0:00:02]} dxc4 {[%emt 0:00:01]} 16. Rfc1 {[%emt 0:00:02]} Bd7 {[%emt 0:02:18]} 17. Rxc4 {[%emt 0:01:45]} (17. f3 $5 {[%cal Rf3e4]} Nc5 18. Rxc4 $16) 17... Rac8 {[%emt 0:00:19] Inhibits Rc7.} 18. Rac1 {[%emt 0:00:20]} Nd6 {[%emt 0:00:55]} 19. Rc5 {[%emt 0:00:51]} Rxc5 {[%emt 0:00:22]} 20. Rxc5 {[%emt 0:00:02]} Rc8 {[%emt 0:00:06]} 21. Ba3 {[%emt 0:00:21] A strong pair of Bishops.} Nde4 {[%emt 0:03:11]} 22. Rxc8+ {[%emt 0:00:43]} Bxc8 {[%emt 0:00:01]} 23. Bb4 {[%emt 0:00:04] [#]} Bd7 $146 {[%emt 0:01:10][%cal Of6d5]} ({Predecessor:} 23... b6 24. f3 Nd5 25. Be1 Nd6 26. e4 Ne3 27. Bh1 Bb7 28. Bb4 Ndc4 29. f4 a5 30. Be1 Nb2 {½-½ (43) Goryachkina,A (2452)-Warakomska,A (2343) Riga 2017}) 24. a3 {[%emt 0:00:25]} b6 {[%emt 0:00:09]} 25. f3 {[%emt 0:00:15]} Nc5 {[%emt 0:00:26]} 26. e4 {[%emt 0:00:04] Against Nd5} Ba4 {[%emt 0:00:40]} 27. Bf1 {[%emt 0:00:28]} a5 {[%emt 0:00:07]} 28. Bc3 {[%emt 0:00:37]} Nfd7 {[%emt 0:00:04]} 29. Kf2 {[%emt 0:01:44]} Kf8 {[%emt 0:00:04]} 30. Ke3 {[%emt 0:00:03]} g6 {[%emt 0:00:01]} 31. f4 {[%emt 0:00:07]} Ke7 {[%emt 0:00:44]} 32. Bg2 {[%emt 0:01:04]} f6 {[%emt 0:00:12]} 33. Bf1 {[%emt 0:00:16]} Nf8 {[%emt 0:00:25]} 34. g4 {[%emt 0:01:23]} Bd7 {[%emt 0:00:01]} (34... Nfd7 $14) 35. f5 $16 {[%emt 0:01:17]} Na4 {[%emt 0:00:08]} 36. Ba1 {[%emt 0:00:11]} Nc5 {[%emt 0:00:03]} 37. h4 {[%emt 0:00:06]} gxf5 {[%emt 0:00:12]} 38. Nxf5+ {[%emt 0:00:52]} Kf7 {[%emt 0:00:10]} 39. Bc4+ {[%emt 0:01:27]} Be6 {[%emt 0:00:02] [#]} 40. Bd5 {[%emt 0:00:04]} (40. Bd4 $1 $16) 40... Nfd7 $1 $14 {[%emt 0:00:10]} 41. Bd4 {[%emt 0:00:13]} Nb3 {[%emt 0:00:30]} (41... Bxd5 $14 42. exd5 Nb3) 42. Nd6+ $18 {[%emt 0:00:32]} Ke7 {[%emt 0:00:00]} 43. Nc8+ {[%emt 0:00:02]} Kf7 {[%emt 0:00:01]} 44. Bxb6 {[%emt 0:00:19]} ({Not} 44. Nxb6 Nxd4 45. Bxe6+ Kxe6 $11) 44... a4 {[%emt 0:00:26]} 45. Bd8 {[%emt 0:00:34] And now Nd6+ would win.} Bxd5 {[%emt 0:00:12]} (45... Nbc5 $142 46. Nb6 Ne5) 46. exd5 {[%emt 0:00:01][%mdl 4096] Endgame KBN-KNN} Ne5 {[%emt 0:00:05]} 47. Nb6 {[%emt 0:00:15]} Nxg4+ {[%emt 0:00:04]} 48. Kf4 {[%emt 0:00:06]} Ne5 {[%emt 0:00:10]} 49. Bc7 {[%emt 0:00:04]} ({White has to play} 49. Nxa4 $18 {Strongly threatening Nb6.} Ng6+ 50. Kg3) 49... Nd3+ {[%emt 0:00:10]} (49... Ng6+ $14 50. Ke3 Nxh4) 50. Kf5 $2 {[%emt 0:00:12]} (50. Ke3 $18 Ndc5 51. Bd6) 50... Ndc5 $14 {[%emt 0:00:14]} 51. Kf4 $2 {[%emt 0:00:14]} (51. Bd6 $14) 51... Nd3+ $18 {[%emt 0:00:21]} 52. Ke3 {[%emt 0:00:05]} Ndc5 {[%emt 0:00:04] [#]} (52... Ne1 {was necessary.} 53. Nxa4 Ke7) 53. h5 {[%emt 0:00:08]} (53. Bd6 $1 $18) 53... Ke8 $2 {[%emt 0:00:03]} (53... Ke7 $16 54. Bh2 f5) 54. Bd6 {[%emt 0:00:06]} Kf7 {[%emt 0:00:22]} (54... Nd7 $142) 55. Kf3 $2 {[%emt 0:00:13]} (55. Bxc5 {aiming for Bb4.} Nxc5 56. Kd4 Nb3+ 57. Kc3) 55... Nd4+ {[%emt 0:00:04]} 56. Kg4 $2 {[%emt 0:00:09]} ({White must play} 56. Kf4 $18 Nd3+ 57. Ke4) 56... Ndb3 {[%emt 0:00:13][%mdl 8192]} (56... f5+ $11 57. Kf4 Nd3+ 58. Ke3 Nb5) 57. Kf4 {[%emt 0:00:08]} Nd3+ {[%emt 0:00:07]} 58. Ke3 {[%emt 0:00:05]} Ndc5 {[%emt 0:00:02]} 59. Nc4 $2 {[%emt 0:00:20]} (59. Bxc5 $18 {Bb4 is the strong threat.} Nxc5 60. Kd4 Nb3+ 61. Kc3) 59... Nd7 $16 {[%emt 0:00:10] [#]} 60. Bb4 $1 {[%emt 0:00:23]} Ndc5 $2 {[%emt 0:00:14][%mdl 8192]} (60... Kg7 $16) 61. Nd6+ $18 {[%emt 0:00:07]} Kg7 {[%emt 0:00:09] Weighted Error Value: White=0.36/Black=0.37} *

[Event "German Rapid Championship 2022"]
[Site "Goettingen"]
[Date "2022.09.24"]
[Round "1.3"]
[White "Schmidt, Tobias"]
[Black "Bluebaum, Matthias"]
[Result "0-1"]
[ECO "C07"]
[WhiteElo "2262"]
[BlackElo "2647"]
[Annotator "TA"]
[PlyCount "132"]
[EventDate "2022.09.24"]
[EventType "swiss"]
[EventCountry "GER"]
[SourceTitle "playchess.com"]
[Source "ChessBase"]
[SourceQuality "1"]
[TimeControl "900+10"]

{[%evp 27,132,0,0,0,-11,-22,-20,-38,-19,-28,-14,-19,-18,-44,-46,-37,-37,-39,-34,-36,-37,-36,-37,-36,-30,-37,-30,-30,-30,-36,-36,-36,-36,-37,-37,-37,-30,-37,-30,-41,-30,-37,-29,-37,-35,-37,-37,-41,-37,-39,-35,-42,-57,-59,-59,-182,-177,-172,-171,-171,-172,-178,-172,-172,-172,-177,-172,-258,-243,-254,-255,-206,-250,-241,-227,-238,-220,-339,-339,-971,-811,-4258,-1181,-6106,-4796,-6008,-5920,-5297,-4134,-2856,-2614,-12792,-5293,-5960,-3042,-29986,-29986,-29986,-29986,-29987,-29988,-29994,-29995,-29995,-29996,-29998,-29999]} 1. e4 {[%emt 0:00:05]} e6 {[%emt 0:00:02]} 2. d4 {[%emt 0:00:06]} d5 {[%emt 0:00:01]} 3. Nd2 {[%emt 0:00:08]} c5 {[%emt 0:00:03]} 4. exd5 {[%emt 0:00:05]} Qxd5 {[%emt 0:00:03]} 5. Ngf3 {[%emt 0:00:08]} cxd4 {[%emt 0:00:02]} 6. Bc4 {[%emt 0:00:06]} Qd6 {[%emt 0:00:03]} 7. O-O {[%emt 0:00:08]} Nf6 {[%emt 0:00:03]} 8. Nb3 {[%emt 0:00:11]} Nc6 {[%emt 0:00:02]} 9. Nbxd4 {[%emt 0:00:10]} Nxd4 {[%emt 0:00:03]} 10. Qxd4 {[%emt 0:00:06]} Qxd4 {[%emt 0:00:03]} 11. Nxd4 {[%emt 0:00:04]} Bd7 {[%emt 0:00:04]} 12. Bf4 {[%emt 0:02:10]} Rc8 {[%emt 0:00:11]} 13. Bb3 {[%emt 0:00:39]} Bc5 {[%emt 0:00:32]} 14. Rad1 {[%emt 0:01:10]} O-O {[%emt 0:00:33]} 15. Nf3 {[%emt 0:03:03] C07: French Tarrasch: 3...c5, 4 Ngf3 and 4 exd5 Qxd5.} Rfd8 {[%emt 0:00:27]} 16. Bd6 {[%emt 0:00:42]} Ne4 {[%emt 0:01:52]} 17. Bxc5 {[%emt 0:01:09] The position is equal.} Nxc5 {[%emt 0:00:02] [#]} 18. Rd4 $146 {[%emt 0:00:29]} ({Predecessor:} 18. Bc4 Ba4 19. b3 Be8 20. Rfe1 Kf8 21. Ne5 Rxd1 22. Rxd1 Ke7 23. f3 f6 24. Nd3 {0-1 (43) El Kher,H (2332)-Komarov,D (2582) Montecatini Terme 1999}) 18... Bc6 {[%emt 0:01:04]} 19. Rfd1 {[%emt 0:00:13]} Rxd4 {[%emt 0:00:04]} 20. Rxd4 {[%emt 0:00:21]} Bxf3 {[%emt 0:00:56]} 21. gxf3 $11 {[%emt 0:00:03][%mdl 4096] Endgame KRB-KRN} Kf8 {[%emt 0:00:07]} 22. c3 {[%emt 0:02:09]} Ke7 {[%emt 0:00:15]} 23. Bc2 {[%emt 0:00:17]} Nd7 {[%emt 0:00:08]} 24. Be4 {[%emt 0:00:25]} Rc7 {[%emt 0:00:14]} 25. f4 {[%emt 0:00:15]} ({Avoid the trap} 25. Bxh7 $2 g6 26. Rh4 Rc8 27. Bxg6 Rg8 $19) 25... g6 {[%emt 0:00:39]} 26. Kf1 {[%emt 0:00:06]} Nf6 {[%emt 0:00:14]} 27. Bf3 {[%emt 0:00:06]} Ne8 {[%emt 0:00:02]} 28. a4 {[%emt 0:00:29]} Nd6 {[%emt 0:00:04]} 29. Be2 {[%emt 0:01:08]} b6 {[%emt 0:00:25]} 30. Bd3 {[%emt 0:00:11]} Rc5 {[%emt 0:00:13]} 31. Kg2 {[%emt 0:00:13]} Ne8 {[%emt 0:01:47]} 32. Be4 {[%emt 0:00:45]} Nf6 {[%emt 0:00:32]} 33. Bf3 {[%emt 0:00:10]} Rc7 {[%emt 0:00:50]} 34. Kf1 {[%emt 0:00:48]} Nd7 {[%emt 0:00:04]} 35. Ke1 {[%emt 0:00:16]} Nc5 {[%emt 0:00:05]} 36. Bd1 {[%emt 0:00:10]} Nb7 {[%emt 0:00:46]} 37. Bc2 {[%emt 0:00:10]} Na5 {[%emt 0:00:14]} 38. Bd3 {[%emt 0:00:37]} Nb3 {[%emt 0:00:35]} 39. Rc4 {[%emt 0:00:27]} Rxc4 {[%emt 0:00:24]} 40. Bxc4 $15 {[%emt 0:00:01] KB-KN} Nc5 {[%emt 0:00:01]} 41. a5 {[%emt 0:00:50] This move loses the game for White.} (41. Kd2 $15) 41... bxa5 $19 {[%emt 0:00:07] Strongly threatening ...Na4.} 42. Kd2 {[%emt 0:00:08]} Kf6 {[%emt 0:00:36]} 43. Bb5 {[%emt 0:00:09]} e5 {[%emt 0:00:25]} 44. Ke3 {[%emt 0:00:19]} exf4+ {[%emt 0:00:33]} 45. Kxf4 {[%emt 0:00:02] [#]} g5+ $1 {[%emt 0:00:01][%cal Bg6g5,Bg5g4][%mdl 32]} 46. Kg4 {[%emt 0:00:15]} Kg6 {[%emt 0:00:18]} 47. h4 {[%emt 0:00:27]} (47. f4 $142 f5+ 48. Kg3) 47... f5+ {[%emt 0:00:13][%cal Bf7f5,Bf5f4,Bf4f3][%mdl 32]} 48. Kh3 {[%emt 0:00:08]} g4+ {[%emt 0:00:32]} 49. Kg3 {[%emt 0:00:08]} Ne4+ {[%emt 0:00:02]} 50. Kg2 {[%emt 0:00:19]} Kh5 {[%emt 0:00:11]} 51. Bd7 {[%emt 0:00:05]} f4 {[%emt 0:01:22]} ({Inferior is} 51... Kxh4 52. Bxf5 Nf6 53. f3 $17) 52. Bf5 {[%emt 0:00:01]} (52. f3 $142 Nc5 53. Bxg4+ Kxh4 54. Bf5) 52... Nf6 {[%emt 0:00:33]} 53. c4 $2 {[%emt 0:00:03]} (53. f3 Kxh4 54. fxg4) 53... Kxh4 {[%emt 0:00:34]} 54. c5 {[%emt 0:00:01]} h5 {[%emt 0:00:04]} (54... f3+ $142 55. Kh2 h5) 55. c6 {[%emt 0:00:03]} Nd5 {[%emt 0:00:01] [#] Hoping for ...f3+.} 56. Bd3 {[%emt 0:00:20]} f3+ {[%emt 0:00:30]} 57. Kh2 {[%emt 0:00:03]} Kg5 {[%emt 0:00:02]} 58. Bc4 {[%emt 0:00:09]} Nc7 {[%emt 0:00:07]} 59. b3 {[%emt 0:00:30]} Kf4 {[%emt 0:00:04]} 60. Bd3 {[%emt 0:00:03]} h4 {[%emt 0:00:04]} 61. Bg6 {[%emt 0:00:03]} g3+ {[%emt 0:00:27] Black mates.} 62. Kg1 {[%emt 0:00:32]} Ne6 {[%emt 0:00:32]} 63. Bd3 {[%emt 0:00:07]} Nd4 {[%emt 0:02:41][%csl LRb3,LRc6]} 64. c7 {[%emt 0:00:01]} Ne2+ {[%emt 0:00:01]} 65. Bxe2 {[%emt 0:00:06]} fxe2 {[%emt 0:00:01]} 66. fxg3+ {[%emt 0:00:03]} Kxg3 {[%emt 0:00:08] Weighted Error Value: White=0.79/Black=0.18 (very precise)} 0-1